Cogmind - Beta 16.1 @@@ ROGUE MODE // 2026.03.05 @ 22:50:35 Player: Yldhra Result: Destroyed by 58-3BL(R) with Subdweller Laser Performance ------------- Evolutions (0) 0 Regions Visited (3) 600 Robots Destroyed (10) 50 Value Destroyed (257) 257 Prototype IDs (0) 0 Alien Tech Used (0) 0 Bonus (0) 0 TOTAL SCORE: 907 Bonus ------- None Cogmind --------- Core Integrity 0/250 Matter 265/300 Energy 210/250 System Corruption 3% Temperature Cool (6) Movement Treading (240) Ox1 Location -10/Subcaves Parts ------- > --- POWER (1) -------- Ion Engine > --- PROPULSION (2) --- Light Treads > --- UTILITY (2) ------ Large Storage Unit Machine Analyzer > --- WEAPON (2) ------- Subdweller Laser > --- INVENTORY (15) --- Light Ion Engine Light Ion Engine Wheel Compact Wheel Improved Heat Sink Medium Matter Pod (100) Signal Interpreter Scrap Shield Fragment (49) Scrap Shield Fragment (47) Peak State ------------ > --- POWER ------------ Ion Engine > --- PROPULSION ------- Light Treads > --- UTILITY ---------- Large Storage Unit Machine Analyzer > --- WEAPON ----------- EM Pulse Gun Subdweller Laser > --- INVENTORY -------- Light Ion Engine Light Ion Engine Wheel Compact Wheel Improved Heat Sink Medium Matter Pod Signal Interpreter Scrap Shield Fragment Scrap Shield Fragment [Rating: 10] Favorites ----------- Power Ion Engine Engine Ion Engine Propulsion Light Treads Treads Light Treads Wheel Wheel Utility Large Storage Unit Device Seismic Detector Storage Large Storage Unit Processor Machine Analyzer Weapon Light Assault Rifle Energy Gun Subdweller Laser Ballistic Gun Light Assault Rifle Build | -11 -10 -10 -10 ------- Run | Yrd Mat Min Sub Slots Evolved . | . . . . Power . | . . . . Propulsion . | . . . . Utility . | . . . . Weapon . | . . . . Parts Attached 15 | 10 1 . 4 Power 4 | 3 . . 1 Engine 4 | 3 . . 1 Core . | . . . . Reactor . | . . . . Propulsion 3 | 2 . . 1 Treads 2 | 1 . . 1 Leg . | . . . . Wheel 1 | 1 . . . Hover . | . . . . Flight . | . . . . Utility 4 | 2 1 . 1 Device 1 | 1 . . . Storage 2 | 1 1 . . Processor 1 | . . . 1 Hackware . | . . . . Protection . | . . . . Artifact . | . . . . Weapon 4 | 3 . . 1 Energy Gun 2 | 1 . . 1 Energy Cannon . | . . . . Ballistic Gun 2 | 2 . . . Ballistic Cannon . | . . . . Launcher . | . . . . Special Weapon . | . . . . Impact Weapon . | . . . . Slashing Weapon . | . . . . Piercing Weapon . | . . . . Special Melee Weapon . | . . . . Unidentified Prototypes . | . . . . Corrupted Parts 1 | . . . 1 System Corruption 3 | . . . 3 Parts Lost 7 | . . . 7 Power 1 | . . . 1 Propulsion 2 | . . . 2 Utility 1 | . . . 1 Weapon 3 | . . . 3 Highest Loss Streak 6 | . . . 6 To Critical Strikes . | . . . . Average Backups 8 | 1 5 8 10 Power 2 | . 2 2 2 Propulsion 2 | . 2 2 2 Utility 2 | . . 2 3 Weapon . | . 1 1 . Tool/Special . | . . . . Unused Backups 5 | . . . 5 Power . | . . . . Propulsion 2 | . . . 2 Utility 3 | . . . 3 Weapon . | . . . . Tool/Special . | . . . . Average Slot Usage (%) 98 | . 100 100 97 Engine 13 | . 14 14 13 Treads 13 | . 14 14 13 Wheel 13 | . 14 14 12 Device 13 | . 14 14 12 Storage 14 | . 14 14 14 Energy Gun 3 | . . . 6 Ballistic Gun 24 | . 28 28 21 Peak Build Rating 10 | 7 7 8 10 Average Rating 7 | 4 7 7 8 On Entrance 5 | . 7 7 8 Avg Prop Armor Cover (%) 13 | 13 13 13 13 Naked Turns . | . . . . Heaviest Build 31 | 13 28 28 31 Greatest Support 20 | 20 10 10 20 Greatest Overweight (x) 3 | 1 2 2 3 Average Overweight (x) 1 | . 1 2 2 Largest Inventory Capacity 15 | 8 15 15 15 Average Capacity 14 | 7 14 15 15 Most Carried 13 | 5 7 9 13 Average Carried 8 | 2 6 8 10 Final Capacity 15 | 8 15 15 15 Final Carried 9 | 5 7 9 9 Class Distribution -------------------- 100% | Mutant Dominant Class ---------------- Mutant | -10/Materials Mutant | -10/Mines Mutant | -10/Subcaves Resources | -11 -10 -10 -10 ----------- Run | Yrd Mat Min Sub Matter Collected 511 | 318 116 18 59 Remotely . | . . . . Salvage Created 436 | 132 30 85 189 Parts 19 | 6 1 6 6 Haulers Intercepted . | . . . . Recyclers Shooed 1 | . . 1 . Parts Field Recycled . | . . . . Retrieved Matter . | . . . . Parts Self-Destructed 12 | . . . 12 Prevented . | . . . . Parts Restored . | . . . . Kills | -11 -10 -10 -10 ------- Run | Yrd Mat Min Sub Combat Hostiles Destroyed 6 | . . 2 4 Guns 6 | . . 2 4 Classes Destroyed 6 | 3 . 1 2 Worker 2 | 1 1 . . Tunneler 1 | 1 . . . Recycler 1 | 1 . . . Grunt 4 | . . 2 2 Artisan 1 | . . . 1 Subdweller 2 | . . . 2 Best Kill Streak 2 | 1 1 2 2 Combat Bots Only 2 | . . 2 2 Max Kills in Single Turn 1 | 1 1 1 1 Gunslinging . | . . . . Exploded . | . . . . Melee . | . . . . Uniques/NPCs Destroyed . | . . . . Combat | -11 -10 -10 -10 -------- Run | Yrd Mat Min Sub Hostile Shots Fired 46 | . . 12 34 Missed 13 | . . 4 9 Hits 33 | . . 8 25 Projectile 33 | . . 8 25 AOE 6 | . . . 6 Critical Strikes 1 | . . . 1 Damage Taken 785 | . . 93 692 Core 261 | . . 23 238 Absorbed by Shields . | . . . . Core Remaining (%) 100 | 100 . . . Volleys Fired 73 | 16 3 9 45 Largest 2 | 2 2 2 2 Hottest 80 | 40 40 40 80 Shots Fired 120 | 18 6 18 78 Gun 120 | 18 6 18 78 Cannon . | . . . . Launcher . | . . . . Special . | . . . . Kinetic 102 | 18 6 18 60 Thermal 9 | . . . 9 Explosive . | . . . . Electromagnetic 9 | . . . 9 Robot Hit Streak 18 | 9 3 12 18 Robot Miss Streak 3 | 3 1 1 2 Penetration Max . | . . . . Secondary Targets 1 | . . . 1 Max Gunslinging Chain 1 | . . . 1 Shots Hit Robots 86 | 13 4 16 53 Core Hits 28 | 6 3 6 13 Critical Kills . | . . . . Critical Parts Destroyed 1 | . . . 1 Critical Strikes 2 | . . . 2 Destroy 1 | . . . 1 Corrupt 1 | . . . 1 Melee Attacks . | . . . . Impact . | . . . . Slashing . | . . . . Piercing . | . . . . Sneak Attacks . | . . . . Combat Hostiles . | . . . . Follow-up Attacks . | . . . . Damage Inflicted 717 | 117 33 137 430 Guns 717 | 117 33 137 430 Cannons . | . . . . Explosions . | . . . . Melee . | . . . . Ramming . | . . . . Kinetic 577 | 117 33 137 290 Thermal 84 | . . . 84 Explosive . | . . . . Electromagnetic 56 | . . . 56 Impact . | . . . . Slashing . | . . . . Piercing . | . . . . Highest Corruption 3 | . . . 3 Average Corruption 3 | . . . 3 Corruption Purged . | . . . . Corruption Blocked . | . . . . Effects 4 | . . . 4 Message Errors 3 | . . . 3 Energy Discharges 1 | . . . 1 Overload Shots . | . . . . Overflow Damage . | . . . . Projectiles . | . . . . Explosions . | . . . . Melee . | . . . . Knockbacks . | . . . . Impact . | . . . . Kinetic . | . . . . Secondary . | . . . . Self-Inflicted Damage . | . . . . Shots . | . . . . Rammed . | . . . . Targets Rammed . | . . . . Kicked . | . . . . Crushed . | . . . . Highest Temperature 12 | . . 12 . Average Temperature 7 | . . 7 . Received Heat Transfer 204 | . . 48 156 Siege Activations . | . . . . Martial Activations . | . . . . Shielding Activations . | . . . . Robots Disrupted 1 | . . . 1 Combat Hostiles 1 | . . . 1 Robots Corrupted . | . . . . Combat Hostiles . | . . . . Parts Fried . | . . . . Impact Corruptions . | . . . . Robots Melted . | . . . . Combat Hostiles . | . . . . Parts Melted 1 | . . . 1 Heat Transferred 100 | . . . 100 Parts Sabotaged . | . . . . Parts Stolen . | . . . . Parts Stripped . | . . . . Power Chain Reactions . | . . . . Alert | -11 -10 -10 -10 ------- Run | Yrd Mat Min Sub Maximum Alert Level . | . . . . Low Security (%) 100 | 100 100 100 . Level 1 . | . . . . Level 2 . | . . . . Level 3 . | . . . . Level 4 . | . . . . Level 5 . | . . . . High Security . | . . . . Max Security . | . . . . Peak Influence 40 | 5 5 40 . Initial 3 | . 3 . . Average 4 | . . 8 . Influence Increases 150 | 15 5 50 80 Destroy 0b10 Robot/C 80 | . . 40 40 Destroy 0b10 Robot/NC 20 | 15 5 . . Destroy Leader 20 | . . 10 10 Lose Combat Pursuer 30 | . . . 30 Influence Decreases 150 | 10 10 50 80 Entered New Map 2 | . 2 . . Time Decay 148 | 10 8 50 80 Squads Dispatched 3 | . 3 . . Investigation 1 | . 1 . . Extermination . | . . . . Reinforcement 2 | . 2 . . Assault . | . . . . Garrison . | . . . . Intercept . | . . . . Searches Triggered . | . . . . Construction Impeded . | . . . . Haulers Reinforced . | . . . . Active Scanning Responses . | . . . . Cargo Convoy Interrupts . | . . . . Stealth | -11 -10 -10 -10 --------- Run | Yrd Mat Min Sub Distress Signals . | . . . . Communications Jammed . | . . . . Distress Signals . | . . . . Times Spotted 12 | . 4 2 6 Peak Tracking Total 2 | . 2 2 2 Tactical Retreats 1 | . . . 1 Traps | -11 -10 -10 -10 ------- Run | Yrd Mat Min Sub Traps Triggered 1 | . 1 . . Indirectly . | . . . . Trap Hack Attempts . | . . . . Triggered . | . . . . Disarmed . | . . . . Reprogrammed . | . . . . Reused . | . . . . Traps Extracted . | . . . . Installed . | . . . . Triggered . | . . . . Machines | -11 -10 -10 -10 ---------- Run | Yrd Mat Min Sub Machines Disabled . | . . . . Max in Single Turn . | . . . . Machines Repaired . | . . . . Machines Dismantled . | . . . . Machines Sabotaged . | . . . . Overloaded Fab Kills . | . . . . Hacking | -11 -10 -10 -10 --------- Run | Yrd Mat Min Sub Machines Accessed 1 | . 1 . . Terminals 1 | . 1 . . Fabricators . | . . . . Repair Stations . | . . . . Recycling Units . | . . . . Scanalyzers . | . . . . Garrison Access . | . . . . Total Hacks 4 | . 4 . . Successful 2 | . 2 . . Failed 2 | . 2 . . Catastrophic . | . . . . Database Lockouts . | . . . . Manual 4 | . 4 . . Terminals 4 | . 4 . . Fabricators . | . . . . Repair Stations . | . . . . Recycling Units . | . . . . Scanalyzers . | . . . . Garrison Access . | . . . . Terminal Hacks . | . . . . Fabricator Hacks . | . . . . Repair Station Hacks . | . . . . Recycling Unit Hacks . | . . . . Scanalyzer . | . . . . Garrison Access Hacks . | . . . . Unauthorized Hacks 2 | . 2 . . Terminals 2 | . 2 . . Botnet 1 | . 1 . . Operators 1 | . 1 . . Fabricators . | . . . . Repair Stations . | . . . . Recycling Units . | . . . . Scanalyzers . | . . . . Garrison Access . | . . . . Data Cores Recovered . | . . . . Used . | . . . . Hacking Detections 1 | . 1 . . Full Trace Events . | . . . . Feedback Events . | . . . . Feedback Blocked . | . . . . Robot Schematics Acquired . | . . . . Robots Built . | . . . . Authchips . | . . . . Time . | . . . . Total Robot Build Rating . | . . . . Part Schematics Acquired . | . . . . Parts Built . | . . . . Authchips . | . . . . Time . | . . . . Total Part Build Rating . | . . . . Part Studies Acquired . | . . . . Parts Repaired . | . . . . Time . | . . . . Parts Recycled . | . . . . Recycled Matter . | . . . . Retrieved Matter . | . . . . Retrieved Components . | . . . . Parts Scanalyzed . | . . . . Part Schematics Acquired . | . . . . Parts Damaged . | . . . . Bothacking | -11 -10 -10 -10 ------------ Run | Yrd Mat Min Sub Used RIF Installer . | . . . . Robots Hacked . | . . . . Non-combat . | . . . . Combat . | . . . . Robot Hacks Applied . | . . . . Relay Couplers Released . | . . . . Fabnet Peak Effective % . | . . . . Robots Rewired . | . . . . Allies Hacked . | . . . . Hacks Repelled . | . . . . Allies | -11 -10 -10 -10 -------- Run | Yrd Mat Min Sub Total Allies . | . . . . Largest Group . | . . . . Highest-Rated Group . | . . . . Highest-Rated Ally . | . . . . Total Orders . | . . . . Ally Attacks . | . . . . Total Damage . | . . . . Kills . | . . . . Allies Corrupted . | . . . . Allies Melted . | . . . . Intel | -11 -10 -10 -10 ------- Run | Yrd Mat Min Sub Active Infowar (turns) 891 | 20 150 233 488 Seismic 862 | 20 150 233 459 Machine Analysis 29 | . . . 29 Robot Analysis Total . | . . . . Derelict Logs Recovered 1 | . . 1 . Drone Launches . | . . . . Drone Recoveries . | . . . . Exploration | -11 -10 -10 -10 ------------- Run | Yrd Mat Min Sub Turns Passed 990 | 107 150 233 500 Spaces Moved 671 | 59 128 166 318 Core 10 | 10 . . . Treads 17 | 8 . . 9 Legs . | . . . . Wheels 644 | 41 128 166 309 Hover . | . . . . Flight . | . . . . Fastest Speed 50 | 50 95 110 110 Average Speed 112 | 100 108 110 117 Slowest Speed 240 | 160 110 110 240 Overloaded Moves . | . . . . Propulsion Burnouts . | . . . . Robots Hopped . | . . . . Potential Cave-ins . | . . . . Cave-ins Triggered . | . . . . Exploration Rate (%) 21 | 4 25 43 12 Regions Visited 3 Branch Regions 2 Pre-discovered Areas . | . . . . Known Exits Taken . | . . . . Unknown Exits Taken 3 | 1 1 1 . Scrap Searched . | . . . . Spaces Dug . | . . . . Terrain Destroyed . | . . . . Melee . | . . . . Projectile . | . . . . AOE . | . . . . Terrain Rammed . | . . . . Walls Destroyed . | . . . . Machines Disabled . | . . . . Actions | -11 -10 -10 -10 --------- Run | Yrd Mat Min Sub Total 802 | 87 134 202 379 Wait 31 | . . 26 5 Move 668 | 58 127 165 318 Hop . | . . . . Pick Up 12 | 3 2 2 5 Fast Attach 7 | 7 . . . Attach 5 | . . . 5 Detach . | . . . . Swap 5 | 3 1 . 1 Drop 1 | . 1 . . Fire 73 | 16 3 9 45 Melee . | . . . . Ram . | . . . . Kick . | . . . . Crush . | . . . . Escape Stasis . | . . . . Rewire . | . . . . Trap . | . . . . Miscellaneous . | . . . . Route ------- -11/Scrapyard -10/Materials -10/Mines (discovered 3 exits: *Mat x2 / [*Sub]) -10/Subcaves History --------- Turn | Location | Event 10 | -11/Scrapyard | Discovered new exit (range 15) 108 | -11/Scrapyard | Entered Materials 202 | -10/Materials | Discovered new exit (range 15) 258 | -10/Materials | Entered Mines 300 | -10/Mines | Build established: Mutant 320 | -10/Mines | Discovered new exit (range 10) 327 | -10/Mines | Identified exit to Materials 489 | -10/Mines | Discovered new exit (range 3) 491 | -10/Mines | Entered Subcaves 492 | -10/Subcaves | Approached by a straggling Scientist 949 | -10/Subcaves | Core integrity fell below 50% 955 | -10/Subcaves | Core integrity fell below 20% 991 | -10/Subcaves | Destroyed by 58-3BL(R) with Subdweller Laser Last Messages --------------- 00819_ Subatomizers dissect the Lgt. Ion Engine. 00824_ Acquired Scrap Shield Fragment. 00828_ Acquired 21 matter. 00830_ Acquired Corrupted Sub. Laser. 00834_ Subatomizers dissect the Lgt. Ion Engine. 00845_ Integrated Corrupted Sub. Laser (+3). [Achievement: A Problem For Future Me] 00847_ #NZ2XB ZV9EPLOC6,,2OJ0TQC1 00848_ Subatomizers dissect the Lgt. Ion Engine, destroying it. 00900_ System corrupted: Energy discharge (-67). 00940_ |PHXAT7V83||YXOTINDQT W#7,C<%TIMMZB|:&#| 00946_ Ion Engine destroyed. 00950_ Wheel destroyed. 00950_ Seismic Detector destroyed. 00954_ Lgt. Assault Rifle destroyed. 00954_ Lgt. Treads destroyed. 00982_ EM Pulse Gun destroyed. 00983_ 6O-YW5(R) destroyed. 00989_ 9:JN0QB69U=2>K= >74I Map ----- +----------------------------------------------------+ | ##??????????????????????????????????????????????? | | ##?????????????????????????????????????????????? | | #?????????????????????????????????????????????? | | #?????????????????????????????????????????????? | | ##?????????????????????????????????????????????? | | ##??????????????????????????????????????????????? | | ###?????????????????????????????????????????????? | | ##????????????????????????????????????????????? | | #????????????????????????????????????????????? | | ##????????????????????????????????????????????? | | ##?????????????????????????????????????????????? | | ##??????????????????????????????????????????????? | | ##??????????????########????????????????????????? | | ####??????????## ##???????????????????????? | | ##?????????# #???????????????????????? | | ##??????###;; #???????????????????????? | | # ##?????# ; ###?????????????????????? | | # #?????# #?????????????????????? | | # #?##### ##????????????????????? | | # ### ##; #????????????????????? | | ## ; ##????????????????????? | | ;;; #????????????????????? | | ##???????????????????? | | # #???????????????????? | | # ;#???????????????????? | | # @ ;#???????????????????? | | # #;; ##??????????????????? | | ## ## #; &%* #??????????????????? | | ?## ####### ###; ;;#& #??????????????????? | | ??# ##??########; ;#"" ##??????????????????? | | ??## ## ##???# R " #???????????????????? | | ???# #???# " #???????????????????? | | #### #???## """ #???????????????????? | | ##????# """" #???????????????????? | | ## ##????? """ ???????????????????? | | ##?###????? ###### ??????????????????? | | ##?????????## ###?????#??????????????????? | | #####???????????#####???????????????????????????? | | #????????????????????????????????????????????????? | | ?????????????????????????????????????????????????? | | ?????????????????????????????????????????????????? | | ?????????????????????????????????????????????????? | | ?????????????????????????????????????????????????? | | ?????????????????????????????????????????????????? | | ?????????????????????????????????????????????????? | | ?????????????????????????????????????????????????? | | ?????????????????????????????????????????????????? | | ?????????????????????????????????????????????????? | | ?????????????????????????????????????????????????? | | ?????????????????????????????????????????????????? | +----------------------------------------------------+ Best States ------------- Heat Dissipation 25 Energy Generation 10 Energy Capacity 250 Matter Stores 300 Matter Capacity 300 Sight Range 16 Terrain Scan Density 10 Evasion (%) 44 Recoil Reduction 1 Item Schematics ----------------- None Robot Schematics ------------------ None Fabricated ------------ Nothing Repaired ---------- Nothing Studied --------- None Alien Tech Used ----------------- None Achievements -------------- A Problem For Future Me Art Critic Challenges ------------ None Game ------ Seed TerrainWeldingWartreads Manual? 0 Play Time 00:11:39 Cumulative 50.2 hours Start 2026.03.05 @ 22:42:35 End 2026.03.05 @ 22:50:35 Sessions 1 Manual Loads 0 Difficulty Rogue Special Mode None Game No. 82 Rogue 82 Adventurer 0 Explorer 0 Win Type - Total 0 Types 0/0/0/0/0/0/0/0/0/0 Lore% 33 Gallery% 36 Achievement% 22 Wizard Run 0 Options --------- Layout 1 ASCII 0 Keyboard 0 Movement Vi Keybinds 0 Fullscreen 1 Font 24/Smallcaps Map View 50x35 Zoom Use 0% Tactical HUD 1 Map Filters NONE Filters NONE Steam 1 RUN: 1e57d01f-44c4-4208-888a-d018368df6b1